[Event "*** Titled Tuesday Blitz"]
[Site "Chess.com"]
[Date "2021.02.16"]
[Round "11"]
[White "bsnsun"]
[Black "Aradhya2000"]
[Result "0-1"]
[WhiteElo "2448"]
[BlackElo "2590"]
[TimeControl "180+1"]
[EndTime "12:10:53 PST"]
[Termination "Aradhya2000 won on time"]

1. d4 {[%clk 0:03:00.9]} 1... d5 {[%clk 0:02:59.7]} 2. c4 {[%clk 0:02:59.8]}
2... c6 {[%clk 0:02:59.6]} 3. Nf3 {[%clk 0:02:58.9]} 3... Nf6 {[%clk 0:02:59.1]}
4. g3 {[%clk 0:02:58.7]} 4... Bf5 {[%clk 0:02:58.4]} 5. Nc3 {[%clk 0:02:57]}
5... e6 {[%clk 0:02:58.2]} 6. Nh4 {[%clk 0:02:46.1]} 6... dxc4 {[%clk 0:02:57]}
7. Nxf5 {[%clk 0:02:44.4]} 7... exf5 {[%clk 0:02:57.9]} 8. e3 {[%clk 0:02:33.1]}
8... Nbd7 {[%clk 0:02:57.5]} 9. Bxc4 {[%clk 0:02:32.9]} 9... Nb6 {[%clk
0:02:57.7]} 10. Be2 {[%clk 0:02:32.9]} 10... h5 {[%clk 0:02:54.7]} 11. h4 {[%clk
0:02:32.2]} 11... g6 {[%clk 0:02:53.4]} 12. b3 {[%clk 0:02:29.2]} 12... Nbd5
{[%clk 0:02:46.2]} 13. Nxd5 {[%clk 0:02:18.5]} 13... Qa5+ {[%clk 0:02:44.5]} 14.
Bd2 {[%clk 0:02:09.1]} 14... Qxd5 {[%clk 0:02:43.4]} 15. O-O {[%clk 0:02:06.7]}
15... Be7 {[%clk 0:02:34.8]} 16. Bf3 {[%clk 0:01:59.5]} 16... Ne4 {[%clk
0:02:34]} 17. Qe2 {[%clk 0:01:57.4]} 17... a5 {[%clk 0:02:28.4]} 18. Rfc1 {[%clk
0:01:53.5]} 18... Kd7 {[%clk 0:02:19.2]} 19. Be1 {[%clk 0:01:51.8]} 19... g5
{[%clk 0:02:17.9]} 20. hxg5 {[%clk 0:01:41.1]} 20... h4 {[%clk 0:02:11.8]} 21.
Qc4 {[%clk 0:01:38.8]} 21... hxg3 {[%clk 0:02:09.8]} 22. fxg3 {[%clk 0:01:32.3]}
22... Bxg5 {[%clk 0:02:07.5]} 23. Qxd5+ {[%clk 0:01:06.5]} 23... cxd5 {[%clk
0:02:08.4]} 24. Bf2 {[%clk 0:01:01.8]} 24... Rh3 {[%clk 0:01:48.4]} 25. Bxe4
{[%clk 0:00:50.4]} 25... fxe4 {[%clk 0:01:37.7]} 26. Kg2 {[%clk 0:00:50.8]}
26... Rah8 {[%clk 0:01:36.6]} 27. Bg1 {[%clk 0:00:50.8]} 27... b6 {[%clk
0:01:33.3]} 28. Rf1 {[%clk 0:00:47.4]} 28... f6 {[%clk 0:01:27.1]} 29. Rac1
{[%clk 0:00:39.2]} 29... R3h7 {[%clk 0:01:15]} 30. Rc2 {[%clk 0:00:25.8]} 30...
Rc8 {[%clk 0:01:11.6]} 31. Rfc1 {[%clk 0:00:24.4]} 31... Rxc2+ {[%clk
0:01:04.8]} 32. Rxc2 {[%clk 0:00:25.3]} 32... f5 {[%clk 0:01:05.3]} 33. g4
{[%clk 0:00:18.7]} 33... f4 {[%clk 0:01:03.1]} 34. exf4 {[%clk 0:00:17.9]} 34...
Bxf4 {[%clk 0:01:03.2]} 35. Rf2 {[%clk 0:00:12.9]} 35... Bd6 {[%clk 0:00:48.5]}
36. Rf5 {[%clk 0:00:13]} 36... Ke6 {[%clk 0:00:48.4]} 37. Be3 {[%clk 0:00:12.6]}
37... Rh2+ {[%clk 0:00:45.9]} 38. Kg1 {[%clk 0:00:12.9]} 38... Rxa2 {[%clk
0:00:45]} 39. Rh5 {[%clk 0:00:13.3]} 39... Rb2 {[%clk 0:00:35.2]} 40. Rh6+
{[%clk 0:00:13.2]} 40... Kd7 {[%clk 0:00:34.9]} 41. Rh7+ {[%clk 0:00:12.7]}
41... Ke8 {[%clk 0:00:33.7]} 42. Rh6 {[%clk 0:00:08.3]} 42... Rxb3 {[%clk
0:00:33.5]} 43. Rxd6 {[%clk 0:00:02.8]} 43... Rxe3 {[%clk 0:00:33.4]} 44. Rxb6
{[%clk 0:00:03.4]} 44... a4 {[%clk 0:00:26.7]} 45. Kf2 {[%clk 0:00:03.7]} 45...
Rb3 {[%clk 0:00:22.5]} 46. Ra6 {[%clk 0:00:02.6]} 46... a3 {[%clk 0:00:22.4]}
47. g5 {[%clk 0:00:02.9]} 47... Kf7 {[%clk 0:00:21.7]} 48. Ke2 {[%clk
0:00:01.7]} 48... Rd3 {[%clk 0:00:21]} 49. Kf2 {[%clk 0:00:01.1]} 49... Kg7
{[%clk 0:00:20.8]} 0-1

[Event "*** Titled Tuesday Blitz"]
[Site "Chess.com"]
[Date "2021.02.16"]
[Round "11"]
[White "maximnovik"]
[Black "BahadirOzen"]
[Result "0-1"]
[WhiteElo "2553"]
[BlackElo "2739"]
[TimeControl "180+1"]
[EndTime "12:10:55 PST"]
[Termination "BahadirOzen won by checkmate"]

1. d4 {[%clk 0:03:00.9]} 1... g6 {[%clk 0:02:59.2]} 2. g3 {[%clk 0:03:00.1]}
2... Bg7 {[%clk 0:02:59.5]} 3. Bg2 {[%clk 0:03:00.6]} 3... d6 {[%clk 0:02:59.9]}
4. e4 {[%clk 0:03:00.4]} 4... Nf6 {[%clk 0:02:59.6]} 5. Ne2 {[%clk 0:02:59.8]}
5... O-O {[%clk 0:03:00.1]} 6. O-O {[%clk 0:02:59.5]} 6... e5 {[%clk 0:03:00]}
7. d5 {[%clk 0:02:57.1]} 7... c6 {[%clk 0:02:35.1]} 8. c4 {[%clk 0:02:56.8]}
8... a6 {[%clk 0:02:28.9]} 9. Nbc3 {[%clk 0:02:55.3]} 9... cxd5 {[%clk
0:02:28.4]} 10. cxd5 {[%clk 0:02:54.6]} 10... b5 {[%clk 0:02:28.1]} 11. h3
{[%clk 0:02:51.1]} 11... Nbd7 {[%clk 0:02:25.5]} 12. Be3 {[%clk 0:02:51]} 12...
b4 {[%clk 0:02:00.9]} 13. Na4 {[%clk 0:02:49.8]} 13... a5 {[%clk 0:02:01.4]} 14.
b3 {[%clk 0:02:37.9]} 14... Ba6 {[%clk 0:02:01.3]} 15. Re1 {[%clk 0:02:37.6]}
15... Qb8 {[%clk 0:01:56.9]} 16. Rc1 {[%clk 0:02:33.8]} 16... Rc8 {[%clk
0:01:55]} 17. Qd2 {[%clk 0:02:34.2]} 17... Bb5 {[%clk 0:01:50.5]} 18. Nb2 {[%clk
0:02:19.8]} 18... Qb7 {[%clk 0:01:45.3]} 19. f3 {[%clk 0:02:13.1]} 19... Rxc1
{[%clk 0:01:31.3]} 20. Rxc1 {[%clk 0:02:12.2]} 20... Rc8 {[%clk 0:01:31.7]} 21.
Bf1 {[%clk 0:02:11.7]} 21... Ne8 {[%clk 0:01:25.5]} 22. Rxc8 {[%clk 0:02:09.1]}
22... Qxc8 {[%clk 0:01:25.2]} 23. Nc1 {[%clk 0:02:09.5]} 23... Bxf1 {[%clk
0:01:23.1]} 24. Kxf1 {[%clk 0:02:09.6]} 24... f5 {[%clk 0:01:22.1]} 25. Ncd3
{[%clk 0:01:46.1]} 25... Ndf6 {[%clk 0:01:11.3]} 26. Nf2 {[%clk 0:01:45.2]}
26... Nh5 {[%clk 0:01:08.5]} 27. g4 {[%clk 0:01:38.4]} 27... Nf4 {[%clk
0:01:01.6]} 28. Bxf4 {[%clk 0:01:37.6]} 28... exf4 {[%clk 0:01:01.8]} 29. Nc4
{[%clk 0:01:37.9]} 29... fxg4 {[%clk 0:00:58.8]} 30. hxg4 {[%clk 0:01:37.1]}
30... g5 {[%clk 0:00:57.3]} 31. Nxa5 {[%clk 0:01:33.6]} 31... Bc3 {[%clk
0:00:53.8]} 32. Qe2 {[%clk 0:01:29.8]} 32... Nf6 {[%clk 0:00:43.5]} 33. Nc4
{[%clk 0:01:29.3]} 33... Qc7 {[%clk 0:00:37.9]} 34. Qc2 {[%clk 0:01:08.3]} 34...
Kg7 {[%clk 0:00:33.6]} 35. a4 {[%clk 0:01:07.2]} 35... h5 {[%clk 0:00:33.4]} 36.
gxh5 {[%clk 0:01:03.9]} 36... Nxh5 {[%clk 0:00:32.9]} 37. Ng4 {[%clk 0:01:03.8]}
37... Ng3+ {[%clk 0:00:31.6]} 38. Kg2 {[%clk 0:01:03.4]} 38... Qc5 {[%clk
0:00:30.5]} 39. Qf2 {[%clk 0:01:01.3]} 39... Bd4 {[%clk 0:00:30]} 40. Qe1 {[%clk
0:00:58.6]} 40... Bc3 {[%clk 0:00:27]} 41. Qg1 {[%clk 0:00:50.2]} 41... Bd4
{[%clk 0:00:26.6]} 42. Qh2 {[%clk 0:00:49.7]} 42... Kf7 {[%clk 0:00:20.6]} 43.
Qh7+ {[%clk 0:00:48.5]} 43... Bg7 {[%clk 0:00:20.3]} 44. Qf5+ {[%clk 0:00:45]}
44... Kg8 {[%clk 0:00:20.7]} 45. Qe6+ {[%clk 0:00:43.3]} 45... Kh8 {[%clk
0:00:20.2]} 46. Qe8+ {[%clk 0:00:39.8]} 46... Kh7 {[%clk 0:00:20.2]} 47. Qf7
{[%clk 0:00:20]} 47... Qd4 {[%clk 0:00:20]} 48. e5 {[%clk 0:00:18.7]} 48... Qa1
{[%clk 0:00:14.5]} 49. Nf6+ {[%clk 0:00:13.7]} 49... Kh6 {[%clk 0:00:14.8]} 50.
Ng8+ {[%clk 0:00:13.8]} 50... Kh7 {[%clk 0:00:14.4]} 51. Nd2 {[%clk 0:00:11.4]}
51... Qh1+ {[%clk 0:00:09]} 52. Kf2 {[%clk 0:00:11.4]} 52... Qh2+ {[%clk
0:00:09.5]} 53. Ke1 {[%clk 0:00:11.6]} 53... Qe2# {[%clk 0:00:10]} 0-1

[Event "*** Titled Tuesday Blitz"]
[Site "Chess.com"]
[Date "2021.02.16"]
[Round "11"]
[White "AniJak"]
[Black "GelmanAlexander"]
[Result "1/2-1/2"]
[WhiteElo "2327"]
[BlackElo "2558"]
[TimeControl "180+1"]
[EndTime "12:10:57 PST"]
[Termination "Game drawn - insufficient material"]

1. e4 {[%clk 0:03:00.8]} 1... c5 {[%clk 0:02:59.7]} 2. Nc3 {[%clk 0:03:00]} 2...
e6 {[%clk 0:03:00]} 3. g3 {[%clk 0:03:00.5]} 3... Nc6 {[%clk 0:02:59.8]} 4. Bg2
{[%clk 0:03:00.6]} 4... Nf6 {[%clk 0:03:00.1]} 5. d3 {[%clk 0:02:59.5]} 5... d6
{[%clk 0:03:00.4]} 6. Nge2 {[%clk 0:02:58.1]} 6... Be7 {[%clk 0:03:00.9]} 7. O-O
{[%clk 0:02:58]} 7... O-O {[%clk 0:03:01.5]} 8. h3 {[%clk 0:02:57.1]} 8... Bd7
{[%clk 0:03:01.8]} 9. g4 {[%clk 0:02:57.5]} 9... h6 {[%clk 0:03:01.2]} 10. Ng3
{[%clk 0:02:57.3]} 10... Rb8 {[%clk 0:03:01.3]} 11. f4 {[%clk 0:02:57.4]} 11...
b5 {[%clk 0:03:01.5]} 12. f5 {[%clk 0:02:42.2]} 12... b4 {[%clk 0:03:01.6]} 13.
Nce2 {[%clk 0:02:41.7]} 13... Ne5 {[%clk 0:02:58.5]} 14. c3 {[%clk 0:02:38.4]}
14... bxc3 {[%clk 0:02:50.7]} 15. bxc3 {[%clk 0:02:37.7]} 15... Qa5 {[%clk
0:02:27.3]} 16. d4 {[%clk 0:02:26.7]} 16... Nc4 {[%clk 0:02:11.9]} 17. g5 {[%clk
0:01:52.1]} 17... hxg5 {[%clk 0:02:11.5]} 18. Bxg5 {[%clk 0:01:52.1]} 18... Rb2
{[%clk 0:01:52]} 19. Bc1 {[%clk 0:01:42.4]} 19... Rxa2 {[%clk 0:01:33.9]} 20.
Rxa2 {[%clk 0:01:37.3]} 20... Qxa2 {[%clk 0:01:34.8]} 21. fxe6 {[%clk
0:01:34.8]} 21... fxe6 {[%clk 0:01:34.7]} 22. Nf4 {[%clk 0:01:35]} 22... cxd4
{[%clk 0:00:59.2]} 23. cxd4 {[%clk 0:01:31.5]} 23... a5 {[%clk 0:00:59.3]} 24.
Ng6 {[%clk 0:01:31.2]} 24... Rf7 {[%clk 0:00:56.1]} 25. Nxe7+ {[%clk 0:01:29]}
25... Rxe7 {[%clk 0:00:56.7]} 26. Bg5 {[%clk 0:01:26.9]} 26... Rf7 {[%clk
0:00:55.1]} 27. Bxf6 {[%clk 0:01:19.7]} 27... Rxf6 {[%clk 0:00:55.2]} 28. Rxf6
{[%clk 0:01:17.5]} 28... gxf6 {[%clk 0:00:56.1]} 29. Qg4+ {[%clk 0:01:14.7]}
29... Kf8 {[%clk 0:00:56.2]} 30. Nh5 {[%clk 0:01:12]} 30... Ke7 {[%clk
0:00:41.7]} 31. Qg7+ {[%clk 0:00:50.8]} 31... Kd8 {[%clk 0:00:41.2]} 32. Nxf6
{[%clk 0:00:51.3]} 32... Nb6 {[%clk 0:00:38.2]} 33. e5 {[%clk 0:00:36.8]} 33...
Qa1+ {[%clk 0:00:22.9]} 34. Kh2 {[%clk 0:00:36.8]} 34... Qxd4 {[%clk 0:00:23.2]}
35. Qg8+ {[%clk 0:00:26.7]} 35... Kc7 {[%clk 0:00:20.6]} 36. Nxd7 {[%clk
0:00:20.3]} 36... Nxd7 {[%clk 0:00:17.4]} 37. Qxe6 {[%clk 0:00:19.8]} 37...
Qxe5+ {[%clk 0:00:16]} 38. Qxe5 {[%clk 0:00:19.8]} 38... dxe5 {[%clk 0:00:13.7]}
39. Bd5 {[%clk 0:00:18.8]} 39... Kd6 {[%clk 0:00:13.5]} 40. Ba2 {[%clk
0:00:18.3]} 40... a4 {[%clk 0:00:12.3]} 41. h4 {[%clk 0:00:17.8]} 41... Ke7
{[%clk 0:00:11.8]} 42. Kg3 {[%clk 0:00:17.5]} 42... Kf6 {[%clk 0:00:11.4]} 43.
Kf3 {[%clk 0:00:17.6]} 43... Nc5 {[%clk 0:00:11.4]} 44. Ke3 {[%clk 0:00:17]}
44... Kg6 {[%clk 0:00:11.5]} 45. Kd2 {[%clk 0:00:14.3]} 45... Kh5 {[%clk
0:00:11.1]} 46. Kc3 {[%clk 0:00:13.7]} 46... Kxh4 {[%clk 0:00:11.1]} 47. Kc4
{[%clk 0:00:14.1]} 47... Ne6 {[%clk 0:00:05.7]} 48. Kd5 {[%clk 0:00:13.8]} 48...
Nf4+ {[%clk 0:00:04]} 49. Kxe5 {[%clk 0:00:13.7]} 49... Nd3+ {[%clk 0:00:04.9]}
50. Kd4 {[%clk 0:00:12.7]} 50... Nc1 {[%clk 0:00:04.7]} 51. Bc4 {[%clk
0:00:11.9]} 51... a3 {[%clk 0:00:05.1]} 52. Kc3 {[%clk 0:00:11.8]} 52... a2
{[%clk 0:00:05.4]} 53. Bxa2 {[%clk 0:00:11.6]} 1/2-1/2

[Event "*** Titled Tuesday Blitz"]
[Site "Chess.com"]
[Date "2021.02.16"]
[Round "11"]
[White "Skatchkov_V"]
[Black "AlexOstrovskiy"]
[Result "0-1"]
[WhiteElo "2561"]
[BlackElo "2756"]
[TimeControl "180+1"]
[EndTime "12:10:58 PST"]
[Termination "AlexOstrovskiy won by checkmate"]

1. d4 {[%clk 0:02:58.4]} 1... Nf6 {[%clk 0:02:59.9]} 2. c4 {[%clk 0:02:58.7]}
2... e5 {[%clk 0:02:58]} 3. dxe5 {[%clk 0:02:57.9]} 3... Ng4 {[%clk 0:02:58.3]}
4. g3 {[%clk 0:02:56.9]} 4... Bc5 {[%clk 0:02:50.9]} 5. Nh3 {[%clk 0:02:55.1]}
5... Nc6 {[%clk 0:02:37.3]} 6. Bg2 {[%clk 0:02:52.6]} 6... Ngxe5 {[%clk
0:02:33.8]} 7. O-O {[%clk 0:02:52.9]} 7... O-O {[%clk 0:02:33.1]} 8. Nc3 {[%clk
0:02:51.9]} 8... d6 {[%clk 0:02:29.6]} 9. b3 {[%clk 0:02:48.3]} 9... a5 {[%clk
0:02:28.9]} 10. Bb2 {[%clk 0:02:48]} 10... Re8 {[%clk 0:02:22.7]} 11. Nf4 {[%clk
0:02:48.2]} 11... Ng6 {[%clk 0:02:18.5]} 12. Nfd5 {[%clk 0:02:46]} 12... Bg4
{[%clk 0:02:08.3]} 13. Qd2 {[%clk 0:02:19]} 13... Nce5 {[%clk 0:01:53.4]} 14.
Rad1 {[%clk 0:01:55.4]} 14... c6 {[%clk 0:01:43.4]} 15. Nf4 {[%clk 0:01:55.2]}
15... Nxf4 {[%clk 0:01:40.3]} 16. Qxf4 {[%clk 0:01:56]} 16... Qc8 {[%clk
0:01:30]} 17. Na4 {[%clk 0:01:49.5]} 17... Ng6 {[%clk 0:01:18.2]} 18. Qg5 {[%clk
0:01:19.5]} 18... f6 {[%clk 0:01:05.6]} 19. Qc1 {[%clk 0:01:04.8]} 19... Bxe2
{[%clk 0:01:05.2]} 20. Nxc5 {[%clk 0:01:04.4]} 20... dxc5 {[%clk 0:01:06.1]} 21.
h4 {[%clk 0:01:04.3]} 21... Bxf1 {[%clk 0:01:00.6]} 22. Rxf1 {[%clk 0:01:03.8]}
22... Qf5 {[%clk 0:00:55.8]} 23. Qc3 {[%clk 0:00:47.6]} 23... a4 {[%clk
0:00:55.2]} 24. b4 {[%clk 0:00:38]} 24... Rad8 {[%clk 0:00:42]} 25. b5 {[%clk
0:00:35.6]} 25... cxb5 {[%clk 0:00:33.6]} 26. cxb5 {[%clk 0:00:36.1]} 26... b6
{[%clk 0:00:33.5]} 27. Qc4+ {[%clk 0:00:34.9]} 27... Kh8 {[%clk 0:00:29.4]} 28.
Qxa4 {[%clk 0:00:35.1]} 28... Ne5 {[%clk 0:00:29]} 29. Qa7 {[%clk 0:00:28.9]}
29... Nf3+ {[%clk 0:00:22.4]} 30. Kh1 {[%clk 0:00:28.4]} 30... Nd2 {[%clk
0:00:19.7]} 31. Rd1 {[%clk 0:00:20.9]} 31... Qxf2 {[%clk 0:00:19]} 32. Qxb6
{[%clk 0:00:18.7]} 32... Qxg3 {[%clk 0:00:15.5]} 33. Qc6 {[%clk 0:00:05.1]}
33... Qxh4+ {[%clk 0:00:12.9]} 34. Kg1 {[%clk 0:00:05.1]} 34... Qf4 {[%clk
0:00:07]} 35. b6 {[%clk 0:00:04.2]} 35... Qe3+ {[%clk 0:00:06.4]} 36. Kh2 {[%clk
0:00:04.2]} 36... Nf3+ {[%clk 0:00:04]} 37. Qxf3 {[%clk 0:00:03.8]} 37... Qh6+
{[%clk 0:00:01.4]} 38. Kg1 {[%clk 0:00:04.3]} 38... Rxd1+ {[%clk 0:00:01.7]} 39.
Qxd1 {[%clk 0:00:05]} 39... Qe3+ {[%clk 0:00:02.2]} 40. Kf1 {[%clk 0:00:05.1]}
40... Qf4+ {[%clk 0:00:02.2]} 41. Qf3 {[%clk 0:00:05]} 41... Qd2 {[%clk
0:00:02.4]} 42. Bc3 {[%clk 0:00:01.7]} 42... Re1# {[%clk 0:00:02]} 0-1

[Event "*** Titled Tuesday Blitz"]
[Site "Chess.com"]
[Date "2021.02.16"]
[Round "11"]
[White "kamilianin235"]
[Black "Julianos82"]
[Result "0-1"]
[WhiteElo "2189"]
[BlackElo "2354"]
[TimeControl "180+1"]
[EndTime "12:11:01 PST"]
[Termination "Julianos82 won on time"]

1. e4 {[%clk 0:03:00.9]} 1... c5 {[%clk 0:02:59.1]} 2. Nf3 {[%clk 0:03:00.4]}
2... b6 {[%clk 0:02:59.2]} 3. d3 {[%clk 0:02:55.5]} 3... Bb7 {[%clk 0:02:58.2]}
4. b3 {[%clk 0:02:55.6]} 4... d6 {[%clk 0:02:50.9]} 5. Bb2 {[%clk 0:02:54.1]}
5... e5 {[%clk 0:02:50.7]} 6. g3 {[%clk 0:02:49.8]} 6... Be7 {[%clk 0:02:47.9]}
7. Bg2 {[%clk 0:02:49.5]} 7... h5 {[%clk 0:02:48.1]} 8. h4 {[%clk 0:02:42.4]}
8... Nh6 {[%clk 0:02:45]} 9. O-O {[%clk 0:02:36.5]} 9... Ng4 {[%clk 0:02:44.1]}
10. Nbd2 {[%clk 0:02:35.4]} 10... Nc6 {[%clk 0:02:41.9]} 11. Nc4 {[%clk
0:02:30.1]} 11... Nd4 {[%clk 0:02:39]} 12. Ne3 {[%clk 0:02:28.1]} 12... g5
{[%clk 0:02:23.8]} 13. Nxg5 {[%clk 0:02:13.5]} 13... Bxg5 {[%clk 0:02:18.4]} 14.
hxg5 {[%clk 0:02:12]} 14... Qxg5 {[%clk 0:02:16.4]} 15. Bc1 {[%clk 0:02:02.7]}
15... Qg6 {[%clk 0:02:07.9]} 16. c3 {[%clk 0:01:50.3]} 16... Ne6 {[%clk
0:02:03.8]} 17. Nf5 {[%clk 0:01:46.9]} 17... Rd8 {[%clk 0:01:58.7]} 18. b4
{[%clk 0:01:42.5]} 18... d5 {[%clk 0:01:49.9]} 19. Qa4+ {[%clk 0:01:37.7]} 19...
Kf8 {[%clk 0:01:43.5]} 20. Qxa7 {[%clk 0:01:32.9]} 20... dxe4 {[%clk 0:01:32.8]}
21. dxe4 {[%clk 0:01:22.7]} 21... Ba8 {[%clk 0:01:24]} 22. Qe7+ {[%clk
0:01:16.8]} 22... Kg8 {[%clk 0:01:21.9]} 23. Qxd8+ {[%clk 0:01:15.6]} 23... Nxd8
{[%clk 0:01:17.8]} 24. Ne7+ {[%clk 0:01:14.9]} 24... Kg7 {[%clk 0:01:18.1]} 25.
Nxg6 {[%clk 0:01:13.1]} 25... Kxg6 {[%clk 0:01:18.7]} 26. bxc5 {[%clk
0:01:11.2]} 26... bxc5 {[%clk 0:01:19.6]} 27. f4 {[%clk 0:01:04.6]} 27... h4
{[%clk 0:01:11.3]} 28. Bh3 {[%clk 0:00:53]} 28... Nf6 {[%clk 0:00:48.9]} 29.
fxe5 {[%clk 0:00:45.3]} 29... Nxe4 {[%clk 0:00:47.2]} 30. Bf5+ {[%clk
0:00:44.5]} 30... Kg7 {[%clk 0:00:46.6]} 31. gxh4 {[%clk 0:00:43.3]} 31... Rxh4
{[%clk 0:00:43.8]} 32. Bxe4 {[%clk 0:00:42.3]} 32... Bxe4 {[%clk 0:00:44.4]} 33.
Kf2 {[%clk 0:00:38.6]} 33... Ne6 {[%clk 0:00:43.6]} 34. Rg1+ {[%clk 0:00:37.4]}
34... Kf8 {[%clk 0:00:43.5]} 35. Be3 {[%clk 0:00:36.8]} 35... Rh2+ {[%clk
0:00:41.2]} 36. Ke1 {[%clk 0:00:35.5]} 36... Bd3 {[%clk 0:00:41.1]} 37. Bf2
{[%clk 0:00:31.3]} 37... c4 {[%clk 0:00:39.5]} 38. a4 {[%clk 0:00:27.7]} 38...
Nf4 {[%clk 0:00:38.5]} 39. Bc5+ {[%clk 0:00:26.9]} 39... Ke8 {[%clk 0:00:37.7]}
40. a5 {[%clk 0:00:23.1]} 40... Re2+ {[%clk 0:00:36.8]} 41. Kf1 {[%clk
0:00:19.1]} 41... Ra2+ {[%clk 0:00:31.4]} 42. Ke1 {[%clk 0:00:18.7]} 42... Rxa1+
{[%clk 0:00:29.2]} 43. Kf2 {[%clk 0:00:19.6]} 43... Rxa5 {[%clk 0:00:27.3]} 44.
Bd4 {[%clk 0:00:18.4]} 44... Ra2+ {[%clk 0:00:27.3]} 45. Ke3 {[%clk 0:00:17.7]}
45... Ne6 {[%clk 0:00:26.3]} 46. Kf3 {[%clk 0:00:14.4]} 46... Nxd4+ {[%clk
0:00:25.1]} 47. cxd4 {[%clk 0:00:13.4]} 47... c3 {[%clk 0:00:25.3]} 48. Rc1
{[%clk 0:00:06.7]} 48... c2 {[%clk 0:00:23.8]} 49. Ke3 {[%clk 0:00:06.6]} 49...
Bg6 {[%clk 0:00:23.8]} 50. Kd2 {[%clk 0:00:05.8]} 50... Ke7 {[%clk 0:00:23.7]}
51. Re1 {[%clk 0:00:03.9]} 51... Ke6 {[%clk 0:00:20.4]} 52. Rf1 {[%clk 0:00:01]}
52... c1=Q+ {[%clk 0:00:18.3]} 0-1

[Event "*** Titled Tuesday Blitz"]
[Site "Chess.com"]
[Date "2021.02.16"]
[Round "11"]
[White "TigrVShlyape"]
[Black "kayrakamer"]
[Result "1-0"]
[WhiteElo "2893"]
[BlackElo "2722"]
[TimeControl "180+1"]
[EndTime "12:11:03 PST"]
[Termination "TigrVShlyape won by resignation"]

1. e4 {[%clk 0:03:00.9]} 1... c5 {[%clk 0:02:59.8]} 2. Nc3 {[%clk 0:03:00.1]}
2... e6 {[%clk 0:02:59.1]} 3. Nf3 {[%clk 0:02:57.9]} 3... a6 {[%clk 0:02:58.6]}
4. a4 {[%clk 0:02:57.3]} 4... b6 {[%clk 0:02:55.7]} 5. g3 {[%clk 0:02:54.9]}
5... Bb7 {[%clk 0:02:56]} 6. Bg2 {[%clk 0:02:55.4]} 6... d5 {[%clk 0:02:48.4]}
7. exd5 {[%clk 0:02:54.1]} 7... exd5 {[%clk 0:02:49.3]} 8. d4 {[%clk 0:02:53.3]}
8... Nf6 {[%clk 0:02:49.8]} 9. O-O {[%clk 0:02:52.8]} 9... Be7 {[%clk
0:02:50.2]} 10. Nh4 {[%clk 0:02:44.7]} 10... Qd7 {[%clk 0:02:42.7]} 11. a5
{[%clk 0:02:34.4]} 11... cxd4 {[%clk 0:02:32.4]} 12. Na4 {[%clk 0:02:33.6]}
12... bxa5 {[%clk 0:02:16.4]} 13. Nb6 {[%clk 0:02:32.6]} 13... Qd8 {[%clk
0:02:10]} 14. Nxa8 {[%clk 0:02:32.6]} 14... Bxa8 {[%clk 0:02:10.9]} 15. Nf5
{[%clk 0:02:32.7]} 15... O-O {[%clk 0:02:10.4]} 16. Nxe7+ {[%clk 0:02:31.9]}
16... Qxe7 {[%clk 0:02:11.3]} 17. Qxd4 {[%clk 0:02:27.2]} 17... Nc6 {[%clk
0:02:11.5]} 18. Qh4 {[%clk 0:02:15.4]} 18... Qc5 {[%clk 0:02:10]} 19. c3 {[%clk
0:02:11.5]} 19... Ne5 {[%clk 0:02:02.4]} 20. Be3 {[%clk 0:02:06.2]} 20... Qb5
{[%clk 0:02:02.6]} 21. Bd4 {[%clk 0:02:05.8]} 21... Nfd7 {[%clk 0:01:55]} 22.
Rfe1 {[%clk 0:02:01.4]} 22... Nd3 {[%clk 0:01:49.1]} 23. Qg4 {[%clk 0:01:57.2]}
23... f6 {[%clk 0:01:32.8]} 24. Bf1 {[%clk 0:01:53.7]} 24... N7e5 {[%clk
0:01:32.4]} 25. Qd1 {[%clk 0:01:20.5]} 25... Nxb2 {[%clk 0:01:01.6]} 26. Bxb5
{[%clk 0:01:19.5]} 26... Nxd1 {[%clk 0:01:01.9]} 27. Be2 {[%clk 0:01:17.9]}
27... Nb2 {[%clk 0:00:59.7]} 28. Rxa5 {[%clk 0:01:17]} 28... Re8 {[%clk
0:00:52.6]} 29. Rb1 {[%clk 0:01:12.5]} 29... Nc6 {[%clk 0:00:35]} 30. Rxa6
{[%clk 0:01:10.2]} 30... Rxe2 {[%clk 0:00:28.2]} 31. Rxa8+ {[%clk 0:01:09.6]}
31... Kf7 {[%clk 0:00:28.9]} 32. Rc8 {[%clk 0:01:03.7]} 32... Nxd4 {[%clk
0:00:20]} 33. cxd4 {[%clk 0:01:03.2]} 33... Nd3 {[%clk 0:00:20.9]} 34. Rc7+
{[%clk 0:01:00.7]} 34... Kg6 {[%clk 0:00:21.1]} 35. Rf1 {[%clk 0:00:46.1]} 35...
h5 {[%clk 0:00:19.7]} 36. Rd7 {[%clk 0:00:45.1]} 36... Nb4 {[%clk 0:00:17.7]}
37. h4 {[%clk 0:00:42.4]} 37... Rd2 {[%clk 0:00:16.3]} 38. Re1 {[%clk 0:00:42]}
38... Nd3 {[%clk 0:00:13]} 39. Rf1 {[%clk 0:00:31.2]} 39... Nb4 {[%clk
0:00:12.9]} 40. Rb7 {[%clk 0:00:28.3]} 40... Rxd4 {[%clk 0:00:10.3]} 41. Re1
{[%clk 0:00:27]} 41... Nd3 {[%clk 0:00:04.4]} 42. Ree7 {[%clk 0:00:25.4]} 42...
Ne5 {[%clk 0:00:04.6]} 43. Kg2 {[%clk 0:00:25.5]} 43... Kf5 {[%clk 0:00:04.2]}
44. Rxg7 {[%clk 0:00:25.1]} 44... Rd2 {[%clk 0:00:04.6]} 45. Rb4 {[%clk
0:00:23]} 45... Ng4 {[%clk 0:00:04.3]} 46. Rf4+ {[%clk 0:00:22]} 46... Ke6
{[%clk 0:00:04.7]} 47. Rh7 {[%clk 0:00:22]} 47... Ne3+ {[%clk 0:00:04.4]} 48.
Kg1 {[%clk 0:00:20.2]} 48... Rd1+ {[%clk 0:00:04]} 49. Kh2 {[%clk 0:00:20.5]}
49... Ng4+ {[%clk 0:00:03.6]} 50. Kg2 {[%clk 0:00:20.8]} 50... d4 {[%clk
0:00:04]} 51. Rxh5 {[%clk 0:00:21]} 51... d3 {[%clk 0:00:04.4]} 52. Rxg4 {[%clk
0:00:20.8]} 52... f5 {[%clk 0:00:02.9]} 53. Rd4 {[%clk 0:00:20.4]} 53... Ke5
{[%clk 0:00:03.4]} 54. Rd8 {[%clk 0:00:20.2]} 54... d2 {[%clk 0:00:04]} 55. g4
{[%clk 0:00:20.5]} 1-0